{"text_format":"1","workbook":"xlsx","n_sheets":2,"sheets":["Multiphase","Flow_Map"],"not_rendered":{"charts":0,"images":0,"macros":1,"external_links":0,"defined_names":0,"comments":0,"pivot_tables":0},"unopened":[],"bounds":{"document_bytes":16777216,"sheet_cells":100000,"rows_first":2000,"rows_last":500,"rows_between":2000,"halvings":0,"cell_chars":16384,"cell_head_chars":4096},"cells_cut":0,"cells_raw":0,"read":"whole","date_system":"1900"}

{"sheet":"Multiphase","index":0,"n_rows":19,"n_cols":6,"rows_kept":19,"cut":false,"hidden":false,"merged":[]}
["Multiphase calculator, TPG4230, Prof. Milan Stanko, "]
["FLUID PROPERTIES"]
[]
["μo","[Pa s]",2.09460052895507E-4]
["μg","[Pa s]",1.7871571391003901E-5]
["σog","[N/m]",8.5856773799709105E-3]
["ρo","[kg/m^3]",569.37143860094]
["ρg","[kg/m^3]",115.772189269721,null,"dp/dx","Flow pattern"]
[null,null,null,null,"[Pa/m]","[-]"]
["OPERATING CONDITIONS",null,null,null,{"$f":"multiphasedpdx($C$12,$C$13,$C$8,$C$7,$C$5,$C$4,$C$18,$C$17,$C$6,$C$19)","v":5659.5992299639756},"Bubble"]
[]
["Usl","[m/s]",1.851134551725852]
["Usg","[m/s]",2.0072829707194387E-2]
[]
["PIPING CHARACTERISTICS"]
[]
["Angle (from hor.)","[rad]",{"$f":"90*PI()/180","v":1.5707963267948966}]
["Diameter","[m]",0.12]
["Roughness","[m]",1.5E-5]

{"sheet":"Flow_Map","index":1,"n_rows":15,"n_cols":16,"rows_kept":15,"cut":false,"hidden":false,"merged":[]}
["Usl",null,null,null,null,null,"Usg [m/s]"]
["[m/s]",0.1,0.1,0.5,0.5,1,1,5,5,10,10,20,20,50,50]
[100,{"$f":"multiphasedpdx($A3,B$2,Multiphase!$C$8,Multiphase!$C$7,Multiphase!$C$5,Multiphase!$C$4,Multiphase!$C$18,Multiphase!$C$17,Multiphase!$C$6,Multiphase!$C$19)","v":314243.10660245706},"Bubble",{"$f":"multiphasedpdx($A3,D$2,Multiphase!$C$8,Multiphase!$C$7,Multiphase!$C$5,Multiphase!$C$4,Multiphase!$C$18,Multiphase!$C$17,Multiphase!$C$6,Multiphase!$C$19)","v":315707.61462991283},"Bubble",{"$f":"multiphasedpdx($A3,F$2,Multiphase!$C$8,Multiphase!$C$7,Multiphase!$C$5,Multiphase!$C$4,Multiphase!$C$18,Multiphase!$C$17,Multiphase!$C$6,Multiphase!$C$19)","v":317541.26087861997},"Bubble",{"$f":"multiphasedpdx($A3,H$2,Multiphase!$C$8,Multiphase!$C$7,Multiphase!$C$5,Multiphase!$C$4,Multiphase!$C$18,Multiphase!$C$17,Multiphase!$C$6,Multiphase!$C$19)","v":332330.51181916887},"Bubble",{"$f":"multiphasedpdx($A3,J$2,Multiphase!$C$8,Multiphase!$C$7,Multiphase!$C$5,Multiphase!$C$4,Multiphase!$C$18,Multiphase!$C$17,Multiphase!$C$6,Multiphase!$C$19)","v":351115.65638567769},"Bubble",{"$f":"multiphasedpdx($A3,L$2,Multiphase!$C$8,Multiphase!$C$7,Multiphase!$C$5,Multiphase!$C$4,Multiphase!$C$18,Multiphase!$C$17,Multiphase!$C$6,Multiphase!$C$19)","v":389672.1618626187},"Bubble",{"$f":"multiphasedpdx($A3,N$2,Multiphase!$C$8,Multiphase!$C$7,Multiphase!$C$5,Multiphase!$C$4,Multiphase!$C$18,Multiphase!$C$17,Multiphase!$C$6,Multiphase!$C$19)","v":513115.90826770657},"Bubble"]
[50,{"$f":"multiphasedpdx($A4,B$2,Multiphase!$C$8,Multiphase!$C$7,Multiphase!$C$5,Multiphase!$C$4,Multiphase!$C$18,Multiphase!$C$17,Multiphase!$C$6,Multiphase!$C$19)","v":83013.563945644331},"Bubble",{"$f":"multiphasedpdx($A4,D$2,Multiphase!$C$8,Multiphase!$C$7,Multiphase!$C$5,Multiphase!$C$4,Multiphase!$C$18,Multiphase!$C$17,Multiphase!$C$6,Multiphase!$C$19)","v":83720.380288198663},"Bubble",{"$f":"multiphasedpdx($A4,F$2,Multiphase!$C$8,Multiphase!$C$7,Multiphase!$C$5,Multiphase!$C$4,Multiphase!$C$18,Multiphase!$C$17,Multiphase!$C$6,Multiphase!$C$19)","v":84607.490405803081},"Bubble",{"$f":"multiphasedpdx($A4,H$2,Multiphase!$C$8,Multiphase!$C$7,Multiphase!$C$5,Multiphase!$C$4,Multiphase!$C$18,Multiphase!$C$17,Multiphase!$C$6,Multiphase!$C$19)","v":91845.195601443891},"Bubble",{"$f":"multiphasedpdx($A4,J$2,Multiphase!$C$8,Multiphase!$C$7,Multiphase!$C$5,Multiphase!$C$4,Multiphase!$C$18,Multiphase!$C$17,Multiphase!$C$6,Multiphase!$C$19)","v":101233.20405218778},"Bubble",{"$f":"multiphasedpdx($A4,L$2,Multiphase!$C$8,Multiphase!$C$7,Multiphase!$C$5,Multiphase!$C$4,Multiphase!$C$18,Multiphase!$C$17,Multiphase!$C$6,Multiphase!$C$19)","v":121091.68943607181},"Bubble",{"$f":"multiphasedpdx($A4,N$2,Multiphase!$C$8,Multiphase!$C$7,Multiphase!$C$5,Multiphase!$C$4,Multiphase!$C$18,Multiphase!$C$17,Multiphase!$C$6,Multiphase!$C$19)","v":188807.1334315454},"Bubble"]
[20,{"$f":"multiphasedpdx($A5,B$2,Multiphase!$C$8,Multiphase!$C$7,Multiphase!$C$5,Multiphase!$C$4,Multiphase!$C$18,Multiphase!$C$17,Multiphase!$C$6,Multiphase!$C$19)","v":18082.30099079862},"Bubble",{"$f":"multiphasedpdx($A5,D$2,Multiphase!$C$8,Multiphase!$C$7,Multiphase!$C$5,Multiphase!$C$4,Multiphase!$C$18,Multiphase!$C$17,Multiphase!$C$6,Multiphase!$C$19)","v":18293.799024101005},"Bubble",{"$f":"multiphasedpdx($A5,F$2,Multiphase!$C$8,Multiphase!$C$7,Multiphase!$C$5,Multiphase!$C$4,Multiphase!$C$18,Multiphase!$C$17,Multiphase!$C$6,Multiphase!$C$19)","v":18565.611160322464},"Bubble",{"$f":"multiphasedpdx($A5,H$2,Multiphase!$C$8,Multiphase!$C$7,Multiphase!$C$5,Multiphase!$C$4,Multiphase!$C$18,Multiphase!$C$17,Multiphase!$C$6,Multiphase!$C$19)","v":21001.428905428122},"Bubble",{"$f":"multiphasedpdx($A5,J$2,Multiphase!$C$8,Multiphase!$C$7,Multiphase!$C$5,Multiphase!$C$4,Multiphase!$C$18,Multiphase!$C$17,Multiphase!$C$6,Multiphase!$C$19)","v":24581.740919535478},"Bubble",{"$f":"multiphasedpdx($A5,L$2,Multiphase!$C$8,Multiphase!$C$7,Multiphase!$C$5,Multiphase!$C$4,Multiphase!$C$18,Multiphase!$C$17,Multiphase!$C$6,Multiphase!$C$19)","v":33125.1491240795},"Bubble",{"$f":"multiphasedpdx($A5,N$2,Multiphase!$C$8,Multiphase!$C$7,Multiphase!$C$5,Multiphase!$C$4,Multiphase!$C$18,Multiphase!$C$17,Multiphase!$C$6,Multiphase!$C$19)","v":26985.420018464556},"Slug"]
[10,{"$f":"multiphasedpdx($A6,B$2,Multiphase!$C$8,Multiphase!$C$7,Multiphase!$C$5,Multiphase!$C$4,Multiphase!$C$18,Multiphase!$C$17,Multiphase!$C$6,Multiphase!$C$19)","v":8723.9606278734736},"Bubble",{"$f":"multiphasedpdx($A6,D$2,Multiphase!$C$8,Multiphase!$C$7,Multiphase!$C$5,Multiphase!$C$4,Multiphase!$C$18,Multiphase!$C$17,Multiphase!$C$6,Multiphase!$C$19)","v":8706.0156175094708},"Bubble",{"$f":"multiphasedpdx($A6,F$2,Multiphase!$C$8,Multiphase!$C$7,Multiphase!$C$5,Multiphase!$C$4,Multiphase!$C$18,Multiphase!$C$17,Multiphase!$C$6,Multiphase!$C$19)","v":8703.5540696631142},"Bubble",{"$f":"multiphasedpdx($A6,H$2,Multiphase!$C$8,Multiphase!$C$7,Multiphase!$C$5,Multiphase!$C$4,Multiphase!$C$18,Multiphase!$C$17,Multiphase!$C$6,Multiphase!$C$19)","v":9258.4801368371991},"Bubble",{"$f":"multiphasedpdx($A6,J$2,Multiphase!$C$8,Multiphase!$C$7,Multiphase!$C$5,Multiphase!$C$4,Multiphase!$C$18,Multiphase!$C$17,Multiphase!$C$6,Multiphase!$C$19)","v":10839.991989565597},"Bubble",{"$f":"multiphasedpdx($A6,L$2,Multiphase!$C$8,Multiphase!$C$7,Multiphase!$C$5,Multiphase!$C$4,Multiphase!$C$18,Multiphase!$C$17,Multiphase!$C$6,Multiphase!$C$19)","v":7891.3522775104066},"Slug",{"$f":"multiphasedpdx($A6,N$2,Multiphase!$C$8,Multiphase!$C$7,Multiphase!$C$5,Multiphase!$C$4,Multiphase!$C$18,Multiphase!$C$17,Multiphase!$C$6,Multiphase!$C$19)","v":50775.517986663464},"Annular"]
[5,{"$f":"multiphasedpdx($A7,B$2,Multiphase!$C$8,Multiphase!$C$7,Multiphase!$C$5,Multiphase!$C$4,Multiphase!$C$18,Multiphase!$C$17,Multiphase!$C$6,Multiphase!$C$19)","v":6319.4675870683359},"Bubble",{"$f":"multiphasedpdx($A7,D$2,Multiphase!$C$8,Multiphase!$C$7,Multiphase!$C$5,Multiphase!$C$4,Multiphase!$C$18,Multiphase!$C$17,Multiphase!$C$6,Multiphase!$C$19)","v":6078.1312409507218},"Bubble",{"$f":"multiphasedpdx($A7,F$2,Multiphase!$C$8,Multiphase!$C$7,Multiphase!$C$5,Multiphase!$C$4,Multiphase!$C$18,Multiphase!$C$17,Multiphase!$C$6,Multiphase!$C$19)","v":5838.7355115638156},"Bubble",{"$f":"multiphasedpdx($A7,H$2,Multiphase!$C$8,Multiphase!$C$7,Multiphase!$C$5,Multiphase!$C$4,Multiphase!$C$18,Multiphase!$C$17,Multiphase!$C$6,Multiphase!$C$19)","v":5249.0968024993872},"Bubble",{"$f":"multiphasedpdx($A7,J$2,Multiphase!$C$8,Multiphase!$C$7,Multiphase!$C$5,Multiphase!$C$4,Multiphase!$C$18,Multiphase!$C$17,Multiphase!$C$6,Multiphase!$C$19)","v":4080.4295632876465},"Slug",{"$f":"multiphasedpdx($A7,L$2,Multiphase!$C$8,Multiphase!$C$7,Multiphase!$C$5,Multiphase!$C$4,Multiphase!$C$18,Multiphase!$C$17,Multiphase!$C$6,Multiphase!$C$19)","v":5905.4499813829789},"Slug",{"$f":"multiphasedpdx($A7,N$2,Multiphase!$C$8,Multiphase!$C$7,Multiphase!$C$5,Multiphase!$C$4,Multiphase!$C$18,Multiphase!$C$17,Multiphase!$C$6,Multiphase!$C$19)","v":39531.55625984542},"Annular"]
[2,{"$f":"multiphasedpdx($A8,B$2,Multiphase!$C$8,Multiphase!$C$7,Multiphase!$C$5,Multiphase!$C$4,Multiphase!$C$18,Multiphase!$C$17,Multiphase!$C$6,Multiphase!$C$19)","v":5531.2289448645342},"Bubble",{"$f":"multiphasedpdx($A8,D$2,Multiphase!$C$8,Multiphase!$C$7,Multiphase!$C$5,Multiphase!$C$4,Multiphase!$C$18,Multiphase!$C$17,Multiphase!$C$6,Multiphase!$C$19)","v":4915.4100837821952},"Bubble",{"$f":"multiphasedpdx($A8,F$2,Multiphase!$C$8,Multiphase!$C$7,Multiphase!$C$5,Multiphase!$C$4,Multiphase!$C$18,Multiphase!$C$17,Multiphase!$C$6,Multiphase!$C$19)","v":3819.5326313113101},"Slug",{"$f":"multiphasedpdx($A8,H$2,Multiphase!$C$8,Multiphase!$C$7,Multiphase!$C$5,Multiphase!$C$4,Multiphase!$C$18,Multiphase!$C$17,Multiphase!$C$6,Multiphase!$C$19)","v":2785.303946571607},"Slug",{"$f":"multiphasedpdx($A8,J$2,Multiphase!$C$8,Multiphase!$C$7,Multiphase!$C$5,Multiphase!$C$4,Multiphase!$C$18,Multiphase!$C$17,Multiphase!$C$6,Multiphase!$C$19)","v":4501.803952497221},"Annular",{"$f":"multiphasedpdx($A8,L$2,Multiphase!$C$8,Multiphase!$C$7,Multiphase!$C$5,Multiphase!$C$4,Multiphase!$C$18,Multiphase!$C$17,Multiphase!$C$6,Multiphase!$C$19)","v":8547.8600942889352},"Annular",{"$f":"multiphasedpdx($A8,N$2,Multiphase!$C$8,Multiphase!$C$7,Multiphase!$C$5,Multiphase!$C$4,Multiphase!$C$18,Multiphase!$C$17,Multiphase!$C$6,Multiphase!$C$19)","v":30386.483609327053},"Annular"]
[1,{"$f":"multiphasedpdx($A9,B$2,Multiphase!$C$8,Multiphase!$C$7,Multiphase!$C$5,Multiphase!$C$4,Multiphase!$C$18,Multiphase!$C$17,Multiphase!$C$6,Multiphase!$C$19)","v":5269.0588346744817},"Bubble",{"$f":"multiphasedpdx($A9,D$2,Multiphase!$C$8,Multiphase!$C$7,Multiphase!$C$5,Multiphase!$C$4,Multiphase!$C$18,Multiphase!$C$17,Multiphase!$C$6,Multiphase!$C$19)","v":3741.1356715274151},"Slug",{"$f":"multiphasedpdx($A9,F$2,Multiphase!$C$8,Multiphase!$C$7,Multiphase!$C$5,Multiphase!$C$4,Multiphase!$C$18,Multiphase!$C$17,Multiphase!$C$6,Multiphase!$C$19)","v":3232.599383386239},"Slug",{"$f":"multiphasedpdx($A9,H$2,Multiphase!$C$8,Multiphase!$C$7,Multiphase!$C$5,Multiphase!$C$4,Multiphase!$C$18,Multiphase!$C$17,Multiphase!$C$6,Multiphase!$C$19)","v":2292.0301974927779},"Slug",{"$f":"multiphasedpdx($A9,J$2,Multiphase!$C$8,Multiphase!$C$7,Multiphase!$C$5,Multiphase!$C$4,Multiphase!$C$18,Multiphase!$C$17,Multiphase!$C$6,Multiphase!$C$19)","v":3535.0110991971724},"Annular",{"$f":"multiphasedpdx($A9,L$2,Multiphase!$C$8,Multiphase!$C$7,Multiphase!$C$5,Multiphase!$C$4,Multiphase!$C$18,Multiphase!$C$17,Multiphase!$C$6,Multiphase!$C$19)","v":6977.7249399196489},"Annular",{"$f":"multiphasedpdx($A9,N$2,Multiphase!$C$8,Multiphase!$C$7,Multiphase!$C$5,Multiphase!$C$4,Multiphase!$C$18,Multiphase!$C$17,Multiphase!$C$6,Multiphase!$C$19)","v":25486.75006467964},"Annular"]
[0.5,{"$f":"multiphasedpdx($A10,B$2,Multiphase!$C$8,Multiphase!$C$7,Multiphase!$C$5,Multiphase!$C$4,Multiphase!$C$18,Multiphase!$C$17,Multiphase!$C$6,Multiphase!$C$19)","v":4994.8100198409193},"Bubble",{"$f":"multiphasedpdx($A10,D$2,Multiphase!$C$8,Multiphase!$C$7,Multiphase!$C$5,Multiphase!$C$4,Multiphase!$C$18,Multiphase!$C$17,Multiphase!$C$6,Multiphase!$C$19)","v":3267.8005541500715},"Slug",{"$f":"multiphasedpdx($A10,F$2,Multiphase!$C$8,Multiphase!$C$7,Multiphase!$C$5,Multiphase!$C$4,Multiphase!$C$18,Multiphase!$C$17,Multiphase!$C$6,Multiphase!$C$19)","v":2720.4184178116866},"Slug",{"$f":"multiphasedpdx($A10,H$2,Multiphase!$C$8,Multiphase!$C$7,Multiphase!$C$5,Multiphase!$C$4,Multiphase!$C$18,Multiphase!$C$17,Multiphase!$C$6,Multiphase!$C$19)","v":2234.5609564390284},"Annular",{"$f":"multiphasedpdx($A10,J$2,Multiphase!$C$8,Multiphase!$C$7,Multiphase!$C$5,Multiphase!$C$4,Multiphase!$C$18,Multiphase!$C$17,Multiphase!$C$6,Multiphase!$C$19)","v":2927.823551449922},"Annular",{"$f":"multiphasedpdx($A10,L$2,Multiphase!$C$8,Multiphase!$C$7,Multiphase!$C$5,Multiphase!$C$4,Multiphase!$C$18,Multiphase!$C$17,Multiphase!$C$6,Multiphase!$C$19)","v":5861.9015061293821},"Annular",{"$f":"multiphasedpdx($A10,N$2,Multiphase!$C$8,Multiphase!$C$7,Multiphase!$C$5,Multiphase!$C$4,Multiphase!$C$18,Multiphase!$C$17,Multiphase!$C$6,Multiphase!$C$19)","v":21707.287230257632},"Annular"]
[0.1,{"$f":"multiphasedpdx($A11,B$2,Multiphase!$C$8,Multiphase!$C$7,Multiphase!$C$5,Multiphase!$C$4,Multiphase!$C$18,Multiphase!$C$17,Multiphase!$C$6,Multiphase!$C$19)","v":3787.8228654005111},"Slug",{"$f":"multiphasedpdx($A11,D$2,Multiphase!$C$8,Multiphase!$C$7,Multiphase!$C$5,Multiphase!$C$4,Multiphase!$C$18,Multiphase!$C$17,Multiphase!$C$6,Multiphase!$C$19)","v":2612.1654508256438},"Slug",{"$f":"multiphasedpdx($A11,F$2,Multiphase!$C$8,Multiphase!$C$7,Multiphase!$C$5,Multiphase!$C$4,Multiphase!$C$18,Multiphase!$C$17,Multiphase!$C$6,Multiphase!$C$19)","v":2064.5751818449885},"Slug",{"$f":"multiphasedpdx($A11,H$2,Multiphase!$C$8,Multiphase!$C$7,Multiphase!$C$5,Multiphase!$C$4,Multiphase!$C$18,Multiphase!$C$17,Multiphase!$C$6,Multiphase!$C$19)","v":1587.5784823083045},"Annular",{"$f":"multiphasedpdx($A11,J$2,Multiphase!$C$8,Multiphase!$C$7,Multiphase!$C$5,Multiphase!$C$4,Multiphase!$C$18,Multiphase!$C$17,Multiphase!$C$6,Multiphase!$C$19)","v":2165.8639002806349},"Annular",{"$f":"multiphasedpdx($A11,L$2,Multiphase!$C$8,Multiphase!$C$7,Multiphase!$C$5,Multiphase!$C$4,Multiphase!$C$18,Multiphase!$C$17,Multiphase!$C$6,Multiphase!$C$19)","v":4256.2738652884555},"Annular",{"$f":"multiphasedpdx($A11,N$2,Multiphase!$C$8,Multiphase!$C$7,Multiphase!$C$5,Multiphase!$C$4,Multiphase!$C$18,Multiphase!$C$17,Multiphase!$C$6,Multiphase!$C$19)","v":16487.491887675242},"Annular"]
[0.05,{"$f":"multiphasedpdx($A12,B$2,Multiphase!$C$8,Multiphase!$C$7,Multiphase!$C$5,Multiphase!$C$4,Multiphase!$C$18,Multiphase!$C$17,Multiphase!$C$6,Multiphase!$C$19)","v":3675.0955294532059},"Slug",{"$f":"multiphasedpdx($A12,D$2,Multiphase!$C$8,Multiphase!$C$7,Multiphase!$C$5,Multiphase!$C$4,Multiphase!$C$18,Multiphase!$C$17,Multiphase!$C$6,Multiphase!$C$19)","v":2481.0443629888468},"Slug",{"$f":"multiphasedpdx($A12,F$2,Multiphase!$C$8,Multiphase!$C$7,Multiphase!$C$5,Multiphase!$C$4,Multiphase!$C$18,Multiphase!$C$17,Multiphase!$C$6,Multiphase!$C$19)","v":1951.7554855536384},"Slug",{"$f":"multiphasedpdx($A12,H$2,Multiphase!$C$8,Multiphase!$C$7,Multiphase!$C$5,Multiphase!$C$4,Multiphase!$C$18,Multiphase!$C$17,Multiphase!$C$6,Multiphase!$C$19)","v":1464.930684459245},"Annular",{"$f":"multiphasedpdx($A12,J$2,Multiphase!$C$8,Multiphase!$C$7,Multiphase!$C$5,Multiphase!$C$4,Multiphase!$C$18,Multiphase!$C$17,Multiphase!$C$6,Multiphase!$C$19)","v":1989.0849717325732},"Annular",{"$f":"multiphasedpdx($A12,L$2,Multiphase!$C$8,Multiphase!$C$7,Multiphase!$C$5,Multiphase!$C$4,Multiphase!$C$18,Multiphase!$C$17,Multiphase!$C$6,Multiphase!$C$19)","v":3876.0060850729706},"Annular"]
[0.01,{"$f":"multiphasedpdx($A13,B$2,Multiphase!$C$8,Multiphase!$C$7,Multiphase!$C$5,Multiphase!$C$4,Multiphase!$C$18,Multiphase!$C$17,Multiphase!$C$6,Multiphase!$C$19)","v":3564.9110808993687},"Slug",{"$f":"multiphasedpdx($A13,D$2,Multiphase!$C$8,Multiphase!$C$7,Multiphase!$C$5,Multiphase!$C$4,Multiphase!$C$18,Multiphase!$C$17,Multiphase!$C$6,Multiphase!$C$19)","v":2354.6032069521202},"Slug",{"$f":"multiphasedpdx($A13,F$2,Multiphase!$C$8,Multiphase!$C$7,Multiphase!$C$5,Multiphase!$C$4,Multiphase!$C$18,Multiphase!$C$17,Multiphase!$C$6,Multiphase!$C$19)","v":1854.5505364087744},"Slug",{"$f":"multiphasedpdx($A13,H$2,Multiphase!$C$8,Multiphase!$C$7,Multiphase!$C$5,Multiphase!$C$4,Multiphase!$C$18,Multiphase!$C$17,Multiphase!$C$6,Multiphase!$C$19)","v":1331.5717167044393},"Annular",{"$f":"multiphasedpdx($A13,J$2,Multiphase!$C$8,Multiphase!$C$7,Multiphase!$C$5,Multiphase!$C$4,Multiphase!$C$18,Multiphase!$C$17,Multiphase!$C$6,Multiphase!$C$19)","v":2883.2189090382199},"Slug",{"$f":"multiphasedpdx($A13,L$2,Multiphase!$C$8,Multiphase!$C$7,Multiphase!$C$5,Multiphase!$C$4,Multiphase!$C$18,Multiphase!$C$17,Multiphase!$C$6,Multiphase!$C$19)","v":3486.2433253872036},"Annular"]
[]
[null,null,null,null,"Bubble",null,null,null,"Stratified",null,null,null,"Slug",null,null,"Annular"]